[Event "Turkish Youth Teams U18 2024"]
[Site "Karaman"]
[Date "2024.04.21"]
[Round "3"]
[White "Yildiz, Egehan"]
[Black "Akkaya, Yigit"]
[Result "1-0"]
[ECO "D45"]
[WhiteElo "1912"]
[BlackElo "1700"]
[Annotator "TA"]
[PlyCount "103"]
[EventDate "2024.04.21"]
[EventType "team-tourn"]
[EventCountry "TUR"]
[SourceTitle "playchess.com"]
[Source "ChessBase"]
[SourceQuality "1"]
[TimeControl "5400+30"]

{[%evp 14,103,27,37,33,29,29,7,12,4,64,49,129,119,124,99,125,98,142,68,78,77,72,73,97,84,98,64,75,33,105,94,109,101,88,95,125,110,106,115,130,135,107,119,138,134,133,140,132,108,117,110,114,22,19,18,520,508,511,506,537,528,743,650,1061,1043,1215,1147,8400,10499,4766,2387,5385,29940,6139,5944,29978,29979,29979,29980,29979,29980,29981,29982,29986,29981,29981,29982,29982,29983,29983,29984]} 1. d4 {[%emt 0:02:00]} Nf6 {[%emt 0:01:00]} 2. c4 {[%emt 0:01:30]} e6 {[%emt 0:00:00]} 3. Nf3 {[%emt 0:00:00]} d5 {[%emt 0:00:00]} 4. Nc3 {[%emt 0:01:00]} c6 {[%emt 0:01:30]} 5. e3 {[%emt 0:02:30]} Nbd7 {[%emt 0:04:30]} 6. Be2 {[%emt 0:00:30]} Bb4 {[%emt 0:05:30]} 7. O-O {[%emt 0:00:30]} O-O {[%emt 0:01:30]} 8. Qc2 {[%emt 0:01:30]} Qe7 {[%emt 0:03:30]} 9. b3 {[%emt 0:02:30]} e5 {[%emt 0:03:30]} 10. dxe5 {[%emt 0:01:30]} Nxe5 {[%emt 0:01:30] The position is equal.} 11. cxd5 {[%emt 0:00:30]} cxd5 {[%emt 0:04:30]} ({Better is} 11... Bf5 $11 12. Qxf5 Bxc3) 12. Bb2 $14 {[%emt 0:03:30]} Neg4 {[%emt 0:06:30]} (12... Nc6 $14) 13. h3 $16 {[%emt 0:08:30]} Nh6 {[%emt 0:04:30]} 14. a3 {[%emt 0:03:30]} Bd6 {[%emt 0:03:30]} 15. Bd3 {[%emt 0:19:30]} Be6 {[%emt 0:14:30]} 16. Rfd1 {[%emt 0:09:30]} (16. Ng5 $16) 16... Rac8 $14 {[%emt 0:02:30]} 17. Qe2 {[%emt 0:00:30]} Rfd8 {[%emt 0:07:30]} 18. b4 {[%emt 0:01:30]} Kh8 {[%emt 0:16:30]} 19. Rac1 {[%emt 0:04:30]} Bb8 {[%emt 0:02:14]} 20. Nb5 {[%emt 0:07:30]} Ne4 {[%emt 0:02:05]} 21. Nbd4 {[%emt 0:02:30]} f6 {[%emt 0:00:55]} ({Black should try} 21... Bd7 $14) 22. Nxe6 $16 {[%emt 0:05:30]} Qxe6 {[%emt 0:00:30]} 23. Bb1 {[%emt 0:01:30]} Nf5 {[%emt 0:03:46]} 24. Rxc8 {[%emt 0:02:30]} Qxc8 {[%emt 0:01:36]} 25. Qc2 {[%emt 0:06:20]} Qxc2 {[%emt 0:03:07]} 26. Bxc2 {[%emt 0:00:30]} Bc7 {[%emt 0:00:30]} 27. Bb3 {[%emt 0:00:30]} Ne7 {[%emt 0:00:30]} 28. Nd4 {[%emt 0:00:13] Hoping for Ne6.} Be5 {[%emt 0:00:47]} 29. f3 {[%emt 0:02:04][%cal Bf2f3,Bf3f4][%mdl 32]} Ng5 {[%emt 0:02:44]} 30. f4 {[%emt 0:03:26]} Bxd4 {[%emt 0:01:15]} 31. Bxd4 {[%emt 0:00:30]} (31. exd4 $6 Ne4 $11) 31... Ne4 {[%emt 0:00:30]} 32. Bxa7 {[%emt 0:00:30] A strong pair of Bishops.} Ra8 {[%emt 0:00:30]} 33. Bc5 {[%emt 0:00:30]} ({White should play} 33. Bxd5 $16 Nc3 (33... Nxd5 $2 34. Rxd5 Kg8 35. Bd4 $18) 34. Bxb7 Rxa7 35. Rd8+ (35. Rd7 Ng8 $11) 35... Ng8 36. Bf3) 33... Rxa3 $11 {[%emt 0:01:02] ...Nxc5 would now be deadly.} 34. Bxe7 {[%emt 0:04:16]} Nc3 $2 {[%emt 0:00:41][%mdl 8192] This move loses the game for Black.} (34... Rxb3 $11 35. Rxd5 Kg8) 35. Rxd5 $18 {[%emt 0:00:30]} Nxd5 {[%emt 0:00:30]} 36. Bxd5 {[%emt 0:00:30]} b6 {[%emt 0:00:30]} 37. e4 {[%emt 0:00:30]} Ra7 {[%emt 0:00:30]} 38. Bd8 {[%emt 0:00:30]} Ra4 {[%emt 0:00:30]} 39. b5 {[%emt 0:00:30]} f5 {[%emt 0:01:13]} 40. Bxb6 {[%emt 0:01:00] [#] Threatens to win with Be3.} ({Worse is} 40. exf5 Rd4 $17) 40... fxe4 {[%emt 0:00:11]} 41. Be3 {[%emt 0:00:05] b6 would kill now.} Ra5 {[%emt 0:00:54]} 42. Bc6 {[%emt 0:00:48][%cal Ob5b6] Intending b6! and mate.} Ra1+ {[%emt 0:00:45]} 43. Kf2 {[%emt 0:00:13]} Ra2+ {[%emt 0:00:30]} 44. Ke1 {[%emt 0:00:20] [#] aiming for b6.} Rxg2 {[%emt 0:00:00]} 45. b6 {[%emt 0:00:30] White mates.} Rb2 {[%emt 0:00:22]} 46. b7 {[%emt 0:00:30]} Rb1+ {[%emt 0:00:30]} 47. Kd2 {[%emt 0:00:30]} Rb2+ {[%emt 0:00:30]} 48. Kc3 {[%emt 0:00:30]} Rb1 {[%emt 0:00:08]} 49. Ba7 {[%emt 0:00:10]} e3 {[%emt 0:00:30][%cal Be4e3,Be3e2][%mdl 32]} 50. b8=Q+ {[%emt 0:00:30]} Rxb8 {[%emt 0:00:30]} 51. Bxb8 {[%emt 0:00:00]} e2 {[%emt 0:00:00]} 52. Kd2 {[%emt 0:00:00] Weighted Error Value: White=0.17 (very precise) /Black=0.34.  Loses game:     	---       	Black=1      Mistake:       	White=2     	Black=3      Inaccurate:     	White=2     	Black=3      OK:         	White=11    	Black=8      Best:        	White=3     	Black=4} 1-0

[Event "Turkish Youth Teams U18 2024"]
[Site "Karaman"]
[Date "2024.04.21"]
[Round "3"]
[White "Tezcan, Alper"]
[Black "Dirikolu, Deniz"]
[Result "1/2-1/2"]
[ECO "C56"]
[WhiteElo "1894"]
[BlackElo "1890"]
[Annotator "NA RC COMBH"]
[PlyCount "63"]
[EventDate "2024.04.21"]
[EventType "team-tourn"]
[EventCountry "TUR"]
[SourceTitle "playchess.com"]
[Source "ChessBase"]
[SourceQuality "1"]
[TimeControl "5400+30"]

1. e4 {[%emt 0:01:00]} e5 {[%emt 0:01:00]} 2. Nf3 {[%emt 0:00:30]} Nc6 {[%emt 0:00:30]} 3. d4 {[%emt 0:00:30]} exd4 {[%emt 0:00:30]} 4. Bc4 {[%emt 0:00:30]} Nf6 {[%emt 0:00:00]} 5. e5 {[%emt 0:00:30]} d5 {[%emt 0:00:00]} 6. Bb5 {[%emt 0:00:00]} Nd7 {[%emt 0:00:30]} 7. O-O {[%emt 0:01:00]} Be7 {[%emt 0:00:00]} 8. Bxc6 {[%emt 0:01:30]} bxc6 {[%emt 0:00:00]} 9. Nxd4 {[%emt 0:00:30]} Nxe5 {[%emt 0:00:30]} 10. Re1 {[%emt 0:01:30]} c5 {[%emt 0:00:30]} 11. Rxe5 {[%emt 0:10:30]} cxd4 {[%emt 0:00:00]} 12. Qxd4 {[%emt 0:00:30]} Be6 {[%emt 0:00:00]} 13. Re1 {[%emt 0:05:30]} O-O {[%emt 0:00:30]} 14. Bf4 {[%emt 0:20:30]} c5 {[%emt 0:07:30]} 15. Qd1 {[%emt 0:07:30]} Qb6 {[%emt 0:01:30]} 16. b3 {[%emt 0:02:30]} Rad8 {[%emt 0:01:30]} 17. Nd2 {[%emt 0:07:30]} Qb4 {[%emt 0:08:30]} 18. Be5 {[%emt 0:04:30]} Qh4 {[%emt 0:00:30]} 19. Bg3 {[%emt 0:02:30]} Qh6 {[%emt 0:01:30]} 20. Nf3 {[%emt 0:03:30]} d4 {[%emt 0:03:30]} 21. Ne5 {[%emt 0:02:30]} Bg5 {[%emt 0:07:30]} 22. Nf3 {[%emt 0:13:56]} Bf6 {[%emt 0:04:30]} 23. Be5 {[%emt 0:01:32]} Rd5 {[%emt 0:00:30]} 24. Qd3 {[%emt 0:01:39]} Be7 {[%emt 0:07:30]} 25. Qa6 {[%emt 0:05:25]} Qg6 {[%emt 0:10:30]} 26. Bg3 {[%emt 0:00:42]} Bf6 {[%emt 0:00:30]} 27. Rac1 {[%emt 0:01:56]} Rf5 {[%emt 0:12:30]} 28. Qd3 {[%emt 0:03:56]} Bd5 {[%emt 0:00:00]} 29. Ne5 {[%emt 0:00:47]} Bxe5 {[%emt 0:00:00]} 30. Rxe5 {[%emt 0:00:00]} Rxe5 {[%emt 0:01:30]} 31. Qxg6 {[%emt 0:00:07]} hxg6 {[%emt 0:00:30]} 32. Bxe5 {[%emt 0:00:00]} 1/2-1/2

[Event "Turkish Youth Teams U18 2024"]
[Site "Karaman"]
[Date "2024.04.21"]
[Round "3"]
[White "Karadas, Hena"]
[Black "Aslan, Ela"]
[Result "0-1"]
[ECO "C00"]
[WhiteElo "1775"]
[BlackElo "1659"]
[Annotator "NA RC COMBH"]
[PlyCount "54"]
[EventDate "2024.04.21"]
[EventType "team-tourn"]
[EventCountry "TUR"]
[SourceTitle "playchess.com"]
[Source "ChessBase"]
[SourceQuality "1"]
[TimeControl "5400+30"]

1. e4 {[%emt 0:03:00]} c5 {[%emt 0:03:00]} 2. Nf3 {[%emt 0:00:30]} e6 {[%emt 0:00:00]} 3. d3 {[%emt 0:00:00]} d5 {[%emt 0:00:00]} 4. Nbd2 {[%emt 0:00:00]} Nc6 {[%emt 0:00:30]} 5. g3 {[%emt 0:00:00]} Nf6 {[%emt 0:00:00]} 6. Bg2 {[%emt 0:00:00]} Be7 {[%emt 0:00:00]} 7. O-O {[%emt 0:00:30]} Qc7 {[%emt 0:01:30]} 8. Re1 {[%emt 0:01:30]} b6 {[%emt 0:00:30]} 9. h4 {[%emt 0:04:30]} Bb7 {[%emt 0:00:30]} 10. c3 {[%emt 0:01:30]} h6 {[%emt 0:01:30]} 11. a3 {[%emt 0:03:30]} O-O-O {[%emt 0:02:30]} 12. b4 {[%emt 0:02:30]} Rdg8 {[%emt 0:01:30]} 13. Nf1 {[%emt 0:02:30]} dxe4 {[%emt 0:09:30]} 14. dxe4 {[%emt 0:00:30]} Nd7 {[%emt 0:01:30]} 15. bxc5 {[%emt 0:07:30]} Nxc5 {[%emt 0:03:30]} 16. Nd4 {[%emt 0:04:30]} Rd8 {[%emt 0:08:30]} 17. Qc2 {[%emt 0:07:30]} Ne5 {[%emt 0:05:30]} 18. Be3 {[%emt 0:05:30]} Ba6 {[%emt 0:06:30]} 19. Nd2 {[%emt 0:05:30]} Ng4 {[%emt 0:10:30]} 20. Bf3 {[%emt 0:03:30]} h5 {[%emt 0:05:30]} 21. Bxg4 {[%emt 0:10:30]} hxg4 {[%emt 0:00:30]} 22. a4 {[%emt 0:01:30]} Bxh4 {[%emt 0:06:30]} 23. gxh4 {[%emt 0:01:30]} Rxh4 {[%emt 0:00:30]} 24. Nf1 {[%emt 0:10:30]} Rdh8 {[%emt 0:00:30]} 25. e5 {[%emt 0:03:30]} Qb7 {[%emt 0:02:30]} 26. f3 {[%emt 0:01:30]} Rh1+ {[%emt 0:01:30]} 27. Kf2 {[%emt 0:00:30]} Nd3+ {[%emt 0:00:30]} 0-1

[Event "Turkish Youth Teams U18 2024"]
[Site "Karaman"]
[Date "2024.04.21"]
[Round "3"]
[White "Camci, Kayra"]
[Black "Ozkeskin, Nazim Efe"]
[Result "1/2-1/2"]
[ECO "B15"]
[WhiteElo "1770"]
[BlackElo "1926"]
[Annotator "TA"]
[PlyCount "72"]
[EventDate "2024.04.21"]
[EventType "team-tourn"]
[EventCountry "TUR"]
[SourceTitle "playchess.com"]
[Source "ChessBase"]
[SourceQuality "1"]
[TimeControl "5400+30"]

{[%evp 9,72,23,23,-29,-33,-31,-16,-21,-20,-72,-66,-79,-82,-77,-68,-60,-16,-14,-31,-54,-35,-54,51,47,41,60,65,75,122,81,110,107,99,107,118,121,135,123,137,45,52,54,61,-29,0,-52,-13,-13,-13,-13,-8,-8,-8,-8,0,0,0,0,0,0,0,0,0,0,0]} 1. e4 {[%emt 0:01:00]} c6 {[%emt 0:01:00]} 2. d4 {[%emt 0:00:30]} d5 {[%emt 0:00:30]} 3. Nc3 {[%emt 0:00:30]} dxe4 {[%emt 0:00:30]} 4. Nxe4 {[%emt 0:00:00]} Nf6 {[%emt 0:00:30]} 5. Nxf6+ {[%emt 0:00:00]} exf6 {[%emt 0:00:00]} 6. Bd3 {[%emt 0:00:00]} (6. c3 $142) 6... Qxd4 $11 {[%emt 0:01:00]} 7. Nf3 {[%emt 0:00:00]} Qb6 {[%emt 0:02:30]} 8. O-O {[%emt 0:01:30]} Be6 {[%emt 0:01:30]} 9. Re1 {[%emt 0:13:30]} (9. Qe2 $11 {keeps the balance.}) 9... Bc5 $17 {[%emt 0:04:30]} 10. Be3 {[%emt 0:00:00]} Bxe3 {[%emt 0:09:30]} 11. Rxe3 {[%emt 0:00:00][%cal Of3d4]} Nd7 {[%emt 0:04:30][%cal Oe8c8]} (11... Qxb2 $2 12. Bc4 O-O 13. Bxe6 $18) 12. Nd4 {[%emt 0:13:30]} Ne5 {[%emt 0:05:30]} (12... Qxd4 13. Rxe6+ Kf8 (13... fxe6 $2 14. Bg6+ hxg6 15. Qxd4 $18) 14. Re4 $11) (12... O-O-O $5 13. Nxe6 fxe6 $15) 13. Nxe6 {[%emt 0:01:30]} fxe6 {[%emt 0:00:30]} 14. Rxe5 {[%emt 0:04:30]} fxe5 {[%emt 0:01:30]} 15. Qh5+ {[%emt 0:09:30]} Kd8 {[%emt 0:06:30]} (15... Ke7 $1 $15 16. Qg5+ Kf7) 16. Qg5+ $14 {[%emt 0:04:30]} Kc8 {[%emt 0:04:30]} 17. Qxg7 {[%emt 0:00:00]} Rd8 {[%emt 0:01:30]} 18. Qxe5 {[%emt 0:01:00] Black is weak on the light squares} c5 {[%emt 0:05:30]} (18... Qd4 $142 19. Re1 h5 (19... Qxe5 20. Rxe5 Kc7 21. g3 $16)) 19. Bxh7 {[%emt 0:04:30] White is more active.} Qd6 {[%emt 0:03:30]} 20. Qxd6 {[%emt 0:00:30]} Rxd6 $16 {[%emt 0:00:00][%mdl 4096] Endgame. KRR-KRB} 21. Bd3 {[%emt 0:00:00]} Rd4 {[%emt 0:01:00] [#]} 22. b3 $1 {[%emt 0:02:00]} Kd7 {[%emt 0:01:30]} 23. Re1 {[%emt 0:00:00]} Rh8 {[%emt 0:06:30]} 24. Re4 {[%emt 0:02:00]} (24. g3 $16) 24... Rxe4 $14 {[%emt 0:07:30]} 25. Bxe4 {[%emt 0:00:30] KR-KB} b5 {[%emt 0:00:00]} 26. f4 {[%emt 0:03:30]} (26. Bd3 $14) 26... e5 {[%emt 0:02:00]} 27. Bd3 {[%emt 0:04:30]} ({White should play} 27. fxe5 $11 Ke6 28. Bd3) 27... exf4 {[%emt 0:00:30] next ...Kc6 is good for Black.} 28. Bxb5+ {[%emt 0:00:30] The position is equal.} Ke6 {[%emt 0:03:30]} 29. h3 {[%emt 0:00:30] [#]} f3 $1 {[%emt 0:06:30]} 30. gxf3 {[%emt 0:00:30]} Rxh3 {[%emt 0:00:30]} 31. Kg2 {[%emt 0:00:00]} Rh4 {[%emt 0:03:27]} 32. Kg3 {[%emt 0:03:00]} Rd4 {[%emt 0:00:22]} 33. f4 {[%emt 0:00:30]} Kf5 {[%emt 0:02:56]} 34. Bd3+ {[%emt 0:00:30]} Kf6 {[%emt 0:00:06]} 35. Kg4 {[%emt 0:02:30]} a5 {[%emt 0:00:30]} 36. a4 {[%emt 0:00:30]} Rd8 {[%emt 0:01:00] Weighted Error Value: White=0.18 (very precise) /Black=0.17 (very precise) .  Mistake:       	White=4     	Black=2      Inaccurate:     	White=1     	Black=4      OK:         	White=11    	Black=8      Best:        	White=5     	Black=3      Strong:       	White=1     	---} 1/2-1/2

[Event "Turkish Youth Teams U18 2024"]
[Site "Karaman"]
[Date "2024.04.21"]
[Round "3"]
[White "Sadik, Muhammed Selim"]
[Black "Basdar, Atakan"]
[Result "0-1"]
[ECO "E73"]
[WhiteElo "1737"]
[BlackElo "1808"]
[Annotator "NA RC COMBH"]
[PlyCount "106"]
[EventDate "2024.04.21"]
[EventType "team-tourn"]
[EventCountry "TUR"]
[SourceTitle "playchess.com"]
[Source "ChessBase"]
[SourceQuality "1"]
[TimeControl "5400+30"]

1. d4 {[%emt 0:01:00]} Nf6 {[%emt 0:01:00]} 2. c4 {[%emt 0:00:30]} g6 {[%emt 0:00:30]} 3. Nc3 {[%emt 0:00:30]} Bg7 {[%emt 0:00:30]} 4. e4 {[%emt 0:00:30]} d6 {[%emt 0:00:30]} 5. Be2 {[%emt 0:00:00]} O-O {[%emt 0:00:00]} 6. Be3 {[%emt 0:00:00]} Nbd7 {[%emt 0:00:00]} 7. g4 {[%emt 0:02:30]} e5 {[%emt 0:03:30]} 8. d5 {[%emt 0:00:30]} Nc5 {[%emt 0:00:30]} 9. f3 {[%emt 0:00:30]} a5 {[%emt 0:00:30]} 10. Qd2 {[%emt 0:01:30]} Ne8 {[%emt 0:01:30]} 11. O-O-O {[%emt 0:04:30]} f5 {[%emt 0:04:30]} 12. Nh3 {[%emt 0:23:30]} f4 {[%emt 0:11:30]} 13. Bg1 {[%emt 0:07:30]} h5 {[%emt 0:01:30]} 14. Nf2 {[%emt 0:00:30]} hxg4 {[%emt 0:00:30]} 15. Nxg4 {[%emt 0:00:30]} Bxg4 {[%emt 0:00:30]} 16. fxg4 {[%emt 0:00:30]} f3 {[%emt 0:00:30]} 17. Bd3 {[%emt 0:02:30]} Nxd3+ {[%emt 0:02:30]} 18. Qxd3 {[%emt 0:00:30]} f2 {[%emt 0:00:30]} 19. h4 {[%emt 0:00:30]} fxg1=Q {[%emt 0:00:30]} 20. Rdxg1 {[%emt 0:00:30]} Nf6 {[%emt 0:01:30]} 21. h5 {[%emt 0:07:30]} Bh6+ {[%emt 0:00:30]} 22. g5 {[%emt 0:02:30]} Nxh5 {[%emt 0:00:30]} 23. gxh6 {[%emt 0:01:30]} Kh7 {[%emt 0:00:30]} 24. Qe2 {[%emt 0:08:30]} Qf6 {[%emt 0:01:30]} 25. Rg4 {[%emt 0:05:30]} Qf3 {[%emt 0:00:30]} 26. Rhg1 {[%emt 0:00:30]} Qxe2 {[%emt 0:01:30]} 27. Nxe2 {[%emt 0:00:30]} Rf6 {[%emt 0:00:00]} 28. Ng3 {[%emt 0:07:30]} Kxh6 {[%emt 0:10:00]} 29. Nxh5 {[%emt 0:00:30]} gxh5 {[%emt 0:00:30]} 30. R4g2 {[%emt 0:02:30]} Raf8 {[%emt 0:00:00]} 31. Kd1 {[%emt 0:00:30]} Rf1+ {[%emt 0:00:00]} 32. Rxf1 {[%emt 0:00:30]} Rxf1+ {[%emt 0:00:30]} 33. Ke2 {[%emt 0:00:30]} Rf4 {[%emt 0:00:00]} 34. Ke3 {[%emt 0:00:30]} h4 {[%emt 0:00:00]} 35. Rg8 {[%emt 0:01:13]} Rf7 {[%emt 0:00:30]} 36. b3 {[%emt 0:00:23]} Kh5 {[%emt 0:00:30]} 37. Rh8+ {[%emt 0:00:59]} Kg4 {[%emt 0:00:30]} 38. Rg8+ {[%emt 0:00:30]} Kh3 {[%emt 0:00:30]} 39. Rh8 {[%emt 0:00:00]} Kg3 {[%emt 0:00:00]} 40. Rg8+ {[%emt 0:00:13]} Kh2 {[%emt 0:00:00]} 41. Rh8 {[%emt 0:00:30]} h3 {[%emt 0:00:00]} 42. Rg8 {[%emt 0:00:30]} b6 {[%emt 0:00:00]} 43. Rg4 {[%emt 0:00:13]} Kh1 {[%emt 0:05:30]} 44. Ke2 {[%emt 0:00:29]} h2 {[%emt 0:00:30]} 45. a3 {[%emt 0:00:30]} Rh7 {[%emt 0:01:30]} 46. b4 {[%emt 0:00:56]} Rh3 {[%emt 0:01:30]} 47. bxa5 {[%emt 0:00:31]} bxa5 {[%emt 0:00:00]} 48. Rg7 {[%emt 0:00:33]} Rxa3 {[%emt 0:00:00]} 49. Kf2 {[%emt 0:00:09]} Ra2+ {[%emt 0:00:30]} 50. Kf1 {[%emt 0:02:14]} a4 {[%emt 0:00:30]} 51. Rxc7 {[%emt 0:00:30]} a3 {[%emt 0:00:30]} 52. Ra7 {[%emt 0:00:30]} Ra1+ {[%emt 0:00:30]} 53. Kf2 {[%emt 0:00:30]} a2 {[%emt 0:00:30]} 0-1

[Event "Turkish Youth Teams U18 2024"]
[Site "Karaman"]
[Date "2024.04.21"]
[Round "3"]
[White "Buyuk, Elvin Esma"]
[Black "Iyican, Sude"]
[Result "1/2-1/2"]
[ECO "A02"]
[WhiteElo "1708"]
[BlackElo "1562"]
[Annotator "NA RC COMBH"]
[PlyCount "65"]
[EventDate "2024.04.21"]
[EventType "team-tourn"]
[EventCountry "TUR"]
[SourceTitle "playchess.com"]
[Source "ChessBase"]
[SourceQuality "1"]
[TimeControl "5400+30"]

1. f4 {[%emt 1:31:00]} g6 {[%emt 1:31:00]} 2. Nf3 {[%emt 0:00:30]} Bg7 {[%emt 0:00:30]} 3. g3 {[%emt 0:00:30]} c5 {[%emt 0:00:30]} 4. Bg2 {[%emt 0:00:30]} Nc6 {[%emt 0:00:30]} 5. O-O {[%emt 0:00:30]} e6 {[%emt 0:00:30]} 6. d3 {[%emt 0:00:30]} Nge7 {[%emt 0:00:30]} 7. Nbd2 {[%emt 0:00:30]} O-O {[%emt 0:00:30]} 8. Nc4 {[%emt 0:00:30]} d5 {[%emt 0:00:30]} 9. Nce5 {[%emt 0:00:30]} Qc7 {[%emt 0:00:30]} 10. Nxc6 {[%emt 0:00:30]} Nxc6 {[%emt 0:00:30]} 11. c3 {[%emt 0:00:30]} d4 {[%emt 0:00:30]} 12. Qc2 {[%emt 0:00:30]} Bd7 {[%emt 0:00:30]} 13. e4 {[%emt 0:00:30]} dxe3 {[%emt 0:00:30]} 14. Bxe3 {[%emt 0:00:30]} Ne7 {[%emt 0:00:30]} 15. Qf2 {[%emt 0:00:30]} Rac8 {[%emt 0:00:30]} 16. Ne5 {[%emt 0:00:30]} Bb5 {[%emt 0:00:30]} 17. Rfd1 {[%emt 0:00:30]} Nf5 {[%emt 0:00:30]} 18. d4 {[%emt 0:00:30]} Nxe3 {[%emt 0:00:30]} 19. Qxe3 {[%emt 0:00:30]} cxd4 {[%emt 0:00:30]} 20. Rxd4 {[%emt 0:00:30]} a5 {[%emt 0:00:30]} 21. a4 {[%emt 0:00:30]} Bxe5 {[%emt 0:00:30]} 22. fxe5 {[%emt 0:00:30]} Bc6 {[%emt 0:00:30]} 23. Bxc6 {[%emt 0:00:30]} Qxc6 {[%emt 0:00:30]} 24. Rd6 {[%emt 0:00:30]} Qc5 {[%emt 0:00:30]} 25. Re1 {[%emt 0:00:30]} b5 {[%emt 0:00:30]} 26. axb5 {[%emt 0:00:30]} Qxb5 {[%emt 0:00:30]} 27. Qe2 {[%emt 0:00:30]} Rb8 {[%emt 0:00:30]} 28. Qxb5 {[%emt 0:00:30]} Rxb5 {[%emt 0:00:30]} 29. Re2 {[%emt 0:00:30]} Rfb8 {[%emt 0:00:30]} 30. Rdd2 {[%emt 0:00:30]} Rc5 {[%emt 0:00:30]} 31. Rd4 {[%emt 0:00:30]} Rbb5 {[%emt 0:00:30]} 32. Rde4 {[%emt 0:00:30]} Rb6 {[%emt 0:00:30]} 33. Rd4 {[%emt 0:00:30]} 1/2-1/2

[Event "Turkish Youth Teams U18 2024"]
[Site "Karaman"]
[Date "2024.04.21"]
[Round "3"]
[White "Saskin, Ayaz"]
[Black "Bozdag, Armagan Emre"]
[Result "1/2-1/2"]
[ECO "B22"]
[WhiteElo "1696"]
[BlackElo "1716"]
[Annotator "NA RC COMBH"]
[PlyCount "147"]
[EventDate "2024.04.21"]
[EventType "team-tourn"]
[EventCountry "TUR"]
[SourceTitle "playchess.com"]
[Source "ChessBase"]
[SourceQuality "1"]
[TimeControl "5400+30"]

1. e4 {[%emt 0:01:00]} c5 {[%emt 0:01:00]} 2. c3 {[%emt 0:00:00]} d5 {[%emt 0:00:30]} 3. exd5 {[%emt 0:00:00]} Qxd5 {[%emt 0:00:30]} 4. d4 {[%emt 0:00:30]} Nf6 {[%emt 0:00:30]} 5. Nf3 {[%emt 0:00:30]} e6 {[%emt 0:00:00]} 6. Be3 {[%emt 0:00:30]} cxd4 {[%emt 0:01:00]} 7. cxd4 {[%emt 0:00:30]} Nc6 {[%emt 0:00:30]} 8. Nc3 {[%emt 0:00:30]} Qd6 {[%emt 0:01:30]} 9. a3 {[%emt 0:02:30]} Be7 {[%emt 0:00:30]} 10. Bc4 {[%emt 0:00:30]} a6 {[%emt 0:01:30]} 11. b4 {[%emt 0:01:30]} Qc7 {[%emt 0:11:30]} 12. Qb3 {[%emt 0:04:30]} b5 {[%emt 0:09:30]} 13. Be2 {[%emt 0:05:30]} Bb7 {[%emt 0:00:30]} 14. Rc1 {[%emt 0:01:30]} Rc8 {[%emt 0:09:30]} 15. O-O {[%emt 0:07:30]} O-O {[%emt 0:02:30]} 16. Rfd1 {[%emt 0:02:30]} Rfd8 {[%emt 0:08:30]} 17. Ng5 {[%emt 0:18:30]} Nd5 {[%emt 0:11:30]} 18. Nxd5 {[%emt 0:10:30]} Rxd5 {[%emt 0:11:30]} 19. Ne4 {[%emt 0:06:30]} Rcd8 {[%emt 0:08:28]} 20. Bf3 {[%emt 0:05:30]} R5d7 {[%emt 0:13:52]} 21. Nc5 {[%emt 0:10:30]} Bxc5 {[%emt 0:00:07]} 22. Rxc5 {[%emt 0:00:30]} Qd6 {[%emt 0:01:17]} 23. h3 {[%emt 0:01:54]} Ne7 {[%emt 0:00:30]} 24. Bxb7 {[%emt 0:01:39]} Rxb7 {[%emt 0:00:22]} 25. Qc2 {[%emt 0:04:19]} Rbd7 {[%emt 0:02:15]} 26. Qc1 {[%emt 0:03:54]} Qb8 {[%emt 0:00:30]} 27. Bf4 {[%emt 0:01:47]} Qb7 {[%emt 0:01:49]} 28. Bc7 {[%emt 0:01:17]} Rc8 {[%emt 0:01:06]} 29. Bf4 {[%emt 0:01:15]} Rcd8 {[%emt 0:00:41]} 30. Bc7 {[%emt 0:00:30]} Rc8 {[%emt 0:00:30]} 31. Bf4 {[%emt 0:00:00]} Re8 {[%emt 0:00:00]} 32. Qc2 {[%emt 0:02:56]} Nd5 {[%emt 0:01:18]} 33. Be3 {[%emt 0:01:07]} Ne7 {[%emt 0:01:09]} 34. Bf4 {[%emt 0:00:30]} Nd5 {[%emt 0:00:30]} 35. Be3 {[%emt 0:00:18]} Red8 {[%emt 0:00:24]} 36. Rc1 {[%emt 0:00:32]} Nb6 {[%emt 0:00:35]} 37. Rc7 {[%emt 0:02:25]} Qd5 {[%emt 0:00:34]} 38. Rc5 {[%emt 0:01:04]} Qa8 {[%emt 0:00:21]} 39. Qb3 {[%emt 0:00:49]} Qe4 {[%emt 0:00:37]} 40. Re5 {[%emt 0:00:30]} Qb7 {[%emt 0:00:30]} 41. Rec5 {[%emt 0:00:13]} Nc4 {[%emt 0:00:29]} 42. a4 {[%emt 0:00:30]} h6 {[%emt 0:00:30]} 43. a5 {[%emt 0:00:30]} Qe4 {[%emt 0:00:29]} 44. Qc2 {[%emt 0:01:04]} Qxc2 {[%emt 0:00:43]} 45. Rxc2 {[%emt 0:00:03]} f5 {[%emt 0:00:19]} 46. Rc6 {[%emt 0:01:06]} Rd6 {[%emt 0:00:30]} 47. Rc7 {[%emt 0:00:30]} g5 {[%emt 0:00:30]} 48. g3 {[%emt 0:00:30]} R8d7 {[%emt 0:00:00]} 49. Rxd7 {[%emt 0:01:26]} Rxd7 {[%emt 0:00:00]} 50. h4 {[%emt 0:00:30]} gxh4 {[%emt 0:00:26]} 51. gxh4 {[%emt 0:00:30]} Rg7+ {[%emt 0:00:30]} 52. Kh2 {[%emt 0:00:00]} Rg4 {[%emt 0:00:31]} 53. Kh3 {[%emt 0:00:11]} Kh7 {[%emt 0:01:21]} 54. Rc3 {[%emt 0:01:04]} Re4 {[%emt 0:00:30]} 55. Rxc4 {[%emt 0:00:53]} bxc4 {[%emt 0:00:46]} 56. b5 {[%emt 0:00:03]} Rxe3+ {[%emt 0:00:30]} 57. fxe3 {[%emt 0:00:30]} c3 {[%emt 0:00:00]} 58. bxa6 {[%emt 0:00:00]} c2 {[%emt 0:00:21]} 59. a7 {[%emt 0:00:09]} c1=Q {[%emt 0:00:30]} 60. a8=Q {[%emt 0:00:30]} Qxe3+ {[%emt 0:00:00]} 61. Kh2 {[%emt 0:00:00]} Qf4+ {[%emt 0:00:37]} 62. Kg2 {[%emt 0:00:06]} Qg4+ {[%emt 0:00:43]} 63. Kf1 {[%emt 0:00:30]} Qd1+ {[%emt 0:00:30]} 64. Kg2 {[%emt 0:00:00]} Qe2+ {[%emt 0:00:00]} 65. Kg3 {[%emt 0:00:11]} Qg4+ {[%emt 0:01:15]} 66. Kh2 {[%emt 0:00:12]} Qxh4+ {[%emt 0:00:18]} 67. Kg2 {[%emt 0:00:30]} Qg4+ {[%emt 0:00:00]} 68. Kf1 {[%emt 0:00:51]} Qd1+ {[%emt 0:00:08]} 69. Kg2 {[%emt 0:00:00]} Qd2+ {[%emt 0:01:20]} 70. Kf1 {[%emt 0:00:00]} Qd1+ {[%emt 0:00:38]} 71. Kg2 {[%emt 0:00:29]} Qe2+ {[%emt 0:00:30]} 72. Kh1 {[%emt 0:00:00]} f4 {[%emt 0:00:29]} 73. Qb7+ {[%emt 0:00:28]} Kh8 {[%emt 0:00:10]} 74. Qa8+ {[%emt 0:00:06]} 1/2-1/2